[Event "Late-Titled-Tuesday-Blitz-August-29-2023"]
[Site "Chess.com"]
[Date "2023.08.29"]
[Round "1"]
[White "Laico"]
[Black "zeitnot2006"]
[Result "0-1"]
[WhiteElo "2430"]
[BlackElo "2747"]
[TimeControl "180+1"]
[EndTime "14:08:19 PDT"]
[Termination "zeitnot2006 won on time"]

1. e4 {[%clk 0:02:57.8]} 1... c5 {[%clk 0:02:59.6]} 2. Nc3 {[%clk 0:02:57.6]}
2... Nc6 {[%clk 0:02:59.3]} 3. f4 {[%clk 0:02:58]} 3... g6 {[%clk 0:02:58.3]} 4.
Nf3 {[%clk 0:02:58.6]} 4... Bg7 {[%clk 0:02:59]} 5. Bb5 {[%clk 0:02:59.1]} 5...
Nd4 {[%clk 0:02:59.3]} 6. O-O {[%clk 0:02:59.7]} 6... Nxb5 {[%clk 0:02:57.6]} 7.
Nxb5 {[%clk 0:03:00.6]} 7... d5 {[%clk 0:02:55.2]} 8. exd5 {[%clk 0:03:01.5]}
8... a6 {[%clk 0:02:55.6]} 9. Nc3 {[%clk 0:03:02.1]} 9... Nf6 {[%clk 0:02:56.2]}
10. d4 {[%clk 0:03:02.5]} 10... c4 {[%clk 0:02:54.6]} 11. Qe2 {[%clk 0:03:00.4]}
11... b5 {[%clk 0:02:52.8]} 12. Ne5 {[%clk 0:02:57.6]} 12... Bb7 {[%clk
0:02:47.7]} 13. a4 {[%clk 0:02:49.2]} 13... b4 {[%clk 0:02:43.6]} 14. Na2 {[%clk
0:02:40.9]} 14... Qxd5 {[%clk 0:02:36.7]} 15. Nxb4 {[%clk 0:02:39.2]} 15...
Qxd4+ {[%clk 0:02:37]} 16. Be3 {[%clk 0:02:39.3]} 16... Qe4 {[%clk 0:02:36.5]}
17. Rad1 {[%clk 0:02:17.7]} 17... O-O {[%clk 0:02:24]} 18. Rd4 {[%clk
0:02:08.7]} 18... Qf5 {[%clk 0:02:23.1]} 19. Qxc4 {[%clk 0:02:02.1]} 19... Rac8
{[%clk 0:02:09.9]} 20. Qd3 {[%clk 0:01:55.5]} 20... a5 {[%clk 0:02:02.8]} 21.
Qxf5 {[%clk 0:01:38.7]} 21... gxf5 {[%clk 0:02:03.7]} 22. Nbd3 {[%clk
0:01:37.7]} 22... Rxc2 {[%clk 0:02:01.9]} 23. Rf2 {[%clk 0:01:33.4]} 23... Rxf2
{[%clk 0:01:58.7]} 24. Nxf2 {[%clk 0:01:33.5]} 24... Rc8 {[%clk 0:01:56.9]} 25.
Rc4 {[%clk 0:01:27.3]} 25... Rd8 {[%clk 0:01:45.3]} 26. Nc6 {[%clk 0:01:21.4]}
26... Bxc6 {[%clk 0:01:42.9]} 27. Rxc6 {[%clk 0:01:22.3]} 27... Nd5 {[%clk
0:01:43.3]} 28. Bd2 {[%clk 0:01:13]} 28... Bxb2 {[%clk 0:01:30.4]} 29. Bxa5
{[%clk 0:01:11.7]} 29... Ra8 {[%clk 0:01:26.2]} 30. Rc5 {[%clk 0:01:07.2]} 30...
e6 {[%clk 0:01:25.9]} 31. g3 {[%clk 0:00:50.3]} 31... Bd4 {[%clk 0:01:25.1]} 32.
Rb5 {[%clk 0:00:50.4]} 32... Rc8 {[%clk 0:01:23.9]} 33. Rb1 {[%clk 0:00:33.2]}
33... Rc2 {[%clk 0:01:21]} 34. Be1 {[%clk 0:00:33.7]} 34... Ra2 {[%clk
0:01:17.8]} 35. a5 {[%clk 0:00:33.2]} 35... Ne3 {[%clk 0:01:09.9]} 36. Kh1
{[%clk 0:00:20.7]} 36... Nc2 {[%clk 0:01:10]} 37. Nd3 {[%clk 0:00:17.2]} 37...
Nxe1 {[%clk 0:01:08.8]} 38. Rxe1 {[%clk 0:00:17.6]} 38... Rxa5 {[%clk
0:01:09.1]} 39. Re2 {[%clk 0:00:17.7]} 39... Ra3 {[%clk 0:01:08.3]} 40. Ne5
{[%clk 0:00:16.2]} 40... Kg7 {[%clk 0:01:08.6]} 41. Kg2 {[%clk 0:00:15.9]} 41...
Kf6 {[%clk 0:01:02.9]} 42. Nf3 {[%clk 0:00:15.6]} 42... Bc3 {[%clk 0:01:01.2]}
43. Rc2 {[%clk 0:00:15.5]} 43... h6 {[%clk 0:00:59.4]} 44. Kf2 {[%clk
0:00:15.9]} 44... Bb4 {[%clk 0:00:58.2]} 45. Ke2 {[%clk 0:00:15.3]} 45... Ra1
{[%clk 0:00:58.3]} 46. Kf2 {[%clk 0:00:14.8]} 46... Ba5 {[%clk 0:00:58.4]} 47.
Kg2 {[%clk 0:00:14.2]} 47... Bb6 {[%clk 0:00:58.8]} 48. Re2 {[%clk 0:00:14.5]}
48... Ke7 {[%clk 0:00:56.2]} 49. Kh3 {[%clk 0:00:13.3]} 49... Rb1 {[%clk
0:00:56.1]} 50. Kg2 {[%clk 0:00:12.5]} 50... f6 {[%clk 0:00:53.7]} 51. Nh4
{[%clk 0:00:10.7]} 51... Kf7 {[%clk 0:00:53.3]} 52. Rc2 {[%clk 0:00:10.4]} 52...
Bd4 {[%clk 0:00:45.7]} 53. Rd2 {[%clk 0:00:08.3]} 53... Be3 {[%clk 0:00:44]} 54.
Rd7+ {[%clk 0:00:08]} 54... Ke8 {[%clk 0:00:43.3]} 55. Rh7 {[%clk 0:00:06.4]}
55... Rb2+ {[%clk 0:00:41.5]} 56. Kh3 {[%clk 0:00:04.6]} 56... Kf8 {[%clk
0:00:36.7]} 57. Rxh6 {[%clk 0:00:03.9]} 57... Kg7 {[%clk 0:00:37.4]} 58. Rg6+
{[%clk 0:00:04.4]} 58... Kf7 {[%clk 0:00:38.2]} 59. Rh6 {[%clk 0:00:04.9]} 59...
Bg1 {[%clk 0:00:35.4]} 60. Nf3 {[%clk 0:00:04.2]} 60... Bf2 {[%clk 0:00:36.2]}
61. Nh4 {[%clk 0:00:03.9]} 61... Kg7 {[%clk 0:00:34.2]} 62. Rg6+ {[%clk
0:00:04.1]} 62... Kf7 {[%clk 0:00:34.8]} 63. Rh6 {[%clk 0:00:04.7]} 63... Bg1
{[%clk 0:00:31.2]} 64. Nf3 {[%clk 0:00:04.6]} 64... Be3 {[%clk 0:00:31]} 65. Nh4
{[%clk 0:00:02.9]} 65... Bd4 {[%clk 0:00:22.7]} 66. Rh7+ {[%clk 0:00:03.1]}
66... Ke8 {[%clk 0:00:22.7]} 67. Rd7 {[%clk 0:00:04]} 67... Bg1 {[%clk
0:00:19.5]} 0-1

[Event "Late-Titled-Tuesday-Blitz-August-29-2023"]
[Site "Chess.com"]
[Date "2023.08.29"]
[Round "1"]
[White "CheckThis4"]
[Black "Dzidzik2203"]
[Result "0-1"]
[WhiteElo "2629"]
[BlackElo "2361"]
[TimeControl "180+1"]
[EndTime "14:08:20 PDT"]
[Termination "Dzidzik2203 won by checkmate"]

1. d4 {[%clk 0:03:00.9]} 1... Nf6 {[%clk 0:02:56.2]} 2. Bg5 {[%clk 0:03:01]}
2... Ne4 {[%clk 0:02:53.7]} 3. Bf4 {[%clk 0:03:00.6]} 3... c5 {[%clk 0:02:53.1]}
4. f3 {[%clk 0:03:01]} 4... Nf6 {[%clk 0:02:50]} 5. dxc5 {[%clk 0:03:01]} 5...
e6 {[%clk 0:02:48.7]} 6. Bd6 {[%clk 0:03:00]} 6... Bxd6 {[%clk 0:02:40.2]} 7.
cxd6 {[%clk 0:02:57.7]} 7... Qb6 {[%clk 0:02:40.3]} 8. e4 {[%clk 0:02:37.1]}
8... Qxb2 {[%clk 0:02:38.9]} 9. Nd2 {[%clk 0:02:37.1]} 9... Nc6 {[%clk
0:02:36.3]} 10. Rb1 {[%clk 0:02:32.6]} 10... Qc3 {[%clk 0:02:36.6]} 11. Bd3
{[%clk 0:02:18.2]} 11... Qc5 {[%clk 0:02:25.5]} 12. f4 {[%clk 0:02:14.9]} 12...
e5 {[%clk 0:02:18.1]} 13. Ngf3 {[%clk 0:01:57.4]} 13... Ng4 {[%clk 0:01:57.5]}
14. Qe2 {[%clk 0:01:53.3]} 14... exf4 {[%clk 0:01:36.6]} 15. e5 {[%clk
0:01:43.4]} 15... Ne3 {[%clk 0:01:29.5]} 16. Rb5 {[%clk 0:01:23.6]} 16... Qc3
{[%clk 0:01:20]} 17. Rb3 {[%clk 0:01:09.6]} 17... Nxc2+ {[%clk 0:00:56.5]} 18.
Bxc2 {[%clk 0:01:07.4]} 18... Qxc2 {[%clk 0:00:56.8]} 19. O-O {[%clk 0:01:07.1]}
19... O-O {[%clk 0:00:54.6]} 20. Kh1 {[%clk 0:00:56.1]} 20... b6 {[%clk
0:00:53.4]} 21. Ne1 {[%clk 0:00:39.9]} 21... Qf5 {[%clk 0:00:50.5]} 22. Nd3
{[%clk 0:00:37.2]} 22... Nd4 {[%clk 0:00:48.5]} 23. Qd1 {[%clk 0:00:31.5]} 23...
Nxb3 {[%clk 0:00:48.6]} 24. Nxb3 {[%clk 0:00:32.4]} 24... Ba6 {[%clk 0:00:47.7]}
25. Rf3 {[%clk 0:00:30.7]} 25... Bxd3 {[%clk 0:00:46.7]} 26. Rxd3 {[%clk
0:00:30.4]} 26... Qxe5 {[%clk 0:00:46.8]} 27. h3 {[%clk 0:00:31.1]} 27... Rfe8
{[%clk 0:00:45.9]} 28. Qg4 {[%clk 0:00:26.8]} 28... f5 {[%clk 0:00:37.6]} 29.
Qh5 {[%clk 0:00:25.3]} 29... g6 {[%clk 0:00:37.7]} 30. Qf3 {[%clk 0:00:23.7]}
30... Qe4 {[%clk 0:00:37.9]} 31. Nd2 {[%clk 0:00:18.2]} 31... Qxf3 {[%clk
0:00:37.9]} 32. Nxf3 {[%clk 0:00:19.1]} 32... Re3 {[%clk 0:00:36.3]} 33. Rd4
{[%clk 0:00:19.4]} 33... Re6 {[%clk 0:00:34.9]} 34. Ng5 {[%clk 0:00:18.5]} 34...
Rf6 {[%clk 0:00:33]} 35. h4 {[%clk 0:00:17.5]} 35... h6 {[%clk 0:00:31.9]} 36.
Nh3 {[%clk 0:00:17.6]} 36... Rc8 {[%clk 0:00:31.6]} 37. Nxf4 {[%clk 0:00:17.6]}
37... Rc6 {[%clk 0:00:32.2]} 38. Nd5 {[%clk 0:00:16.4]} 38... Kf7 {[%clk
0:00:31.1]} 39. Nxf6 {[%clk 0:00:15]} 39... Kxf6 {[%clk 0:00:32]} 40. Kh2 {[%clk
0:00:15.3]} 40... Ke6 {[%clk 0:00:32.2]} 41. h5 {[%clk 0:00:13.7]} 41... g5
{[%clk 0:00:31.2]} 42. Ra4 {[%clk 0:00:12.6]} 42... a5 {[%clk 0:00:31.3]} 43.
Kg3 {[%clk 0:00:12.7]} 43... Rxd6 {[%clk 0:00:31.6]} 44. Ra3 {[%clk 0:00:13.4]}
44... Rd4 {[%clk 0:00:31.6]} 45. Rb3 {[%clk 0:00:12.2]} 45... Rd6 {[%clk
0:00:30]} 46. Kf3 {[%clk 0:00:10.8]} 46... Ke5 {[%clk 0:00:29.4]} 47. g3 {[%clk
0:00:10.3]} 47... Rc6 {[%clk 0:00:27]} 48. a4 {[%clk 0:00:09.8]} 48... d5 {[%clk
0:00:26.1]} 49. Ke2 {[%clk 0:00:08.6]} 49... d4 {[%clk 0:00:25.9]} 50. Rb5+
{[%clk 0:00:07.9]} 50... Ke4 {[%clk 0:00:26.4]} 51. Rb3 {[%clk 0:00:07.6]} 51...
f4 {[%clk 0:00:24.7]} 52. gxf4 {[%clk 0:00:07.3]} 52... gxf4 {[%clk 0:00:25.6]}
53. Rh3 {[%clk 0:00:07.4]} 53... Rc2+ {[%clk 0:00:24.8]} 54. Kd1 {[%clk
0:00:07.6]} 54... Rg2 {[%clk 0:00:24.3]} 55. Rb3 {[%clk 0:00:07.1]} 55... f3
{[%clk 0:00:23.1]} 56. Rxb6 {[%clk 0:00:07]} 56... Rg5 {[%clk 0:00:20.3]} 57.
Rxh6 {[%clk 0:00:05.6]} 57... Re5 {[%clk 0:00:19.6]} 58. Rf6 {[%clk 0:00:05.2]}
58... Ke3 {[%clk 0:00:20.1]} 59. h6 {[%clk 0:00:05]} 59... f2 {[%clk 0:00:19.8]}
60. h7 {[%clk 0:00:05.3]} 60... Rh5 {[%clk 0:00:20.2]} 61. Rf7 {[%clk
0:00:05.7]} 61... Rxh7 {[%clk 0:00:18.9]} 62. Rxh7 {[%clk 0:00:01.2]} 62...
f1=Q+ {[%clk 0:00:18.8]} 63. Kc2 {[%clk 0:00:02.1]} 63... Qd3+ {[%clk
0:00:19.2]} 64. Kb2 {[%clk 0:00:02.3]} 64... Qxh7 {[%clk 0:00:20.1]} 65. Ka3
{[%clk 0:00:03.1]} 65... Qc7 {[%clk 0:00:20]} 66. Kb3 {[%clk 0:00:03.2]} 66...
Qc3+ {[%clk 0:00:20.2]} 67. Ka2 {[%clk 0:00:03.1]} 67... Qb4 {[%clk 0:00:20.7]}
68. Ka1 {[%clk 0:00:01.9]} 68... Kd2 {[%clk 0:00:21.6]} 69. Ka2 {[%clk 0:00:02]}
69... Kc2 {[%clk 0:00:22.5]} 70. Ka1 {[%clk 0:00:02.3]} 70... Qb2# {[%clk
0:00:23.4]} 0-1

[Event "Late-Titled-Tuesday-Blitz-August-29-2023"]
[Site "Chess.com"]
[Date "2023.08.29"]
[Round "1"]
[White "mc4chess"]
[Black "zsoltkorpics"]
[Result "0-1"]
[WhiteElo "2627"]
[BlackElo "2388"]
[TimeControl "180+1"]
[EndTime "14:08:21 PDT"]
[Termination "zsoltkorpics won on time"]

1. c4 {[%clk 0:03:00.9]} 1... Nf6 {[%clk 0:02:58.5]} 2. Nc3 {[%clk 0:03:00]}
2... c5 {[%clk 0:02:57.9]} 3. g3 {[%clk 0:02:59.8]} 3... d5 {[%clk 0:02:58]} 4.
cxd5 {[%clk 0:02:59.5]} 4... Nxd5 {[%clk 0:02:58.4]} 5. Bg2 {[%clk 0:02:59.3]}
5... Nc7 {[%clk 0:02:58.6]} 6. Nf3 {[%clk 0:02:58.9]} 6... Nc6 {[%clk
0:02:57.5]} 7. d3 {[%clk 0:02:57]} 7... e5 {[%clk 0:02:52.7]} 8. b3 {[%clk
0:02:48.9]} 8... Be7 {[%clk 0:02:47.2]} 9. Bb2 {[%clk 0:02:48.1]} 9... O-O
{[%clk 0:02:46.1]} 10. Rc1 {[%clk 0:02:48.2]} 10... Be6 {[%clk 0:02:35.5]} 11.
Ne4 {[%clk 0:02:43.2]} 11... b6 {[%clk 0:02:22.3]} 12. Nxe5 {[%clk 0:02:41.3]}
12... Nxe5 {[%clk 0:02:16.3]} 13. Bxe5 {[%clk 0:02:42.2]} 13... Bd5 {[%clk
0:02:07.2]} 14. O-O {[%clk 0:02:30.1]} 14... Ne6 {[%clk 0:02:06.3]} 15. Bb2
{[%clk 0:02:18.3]} 15... Rc8 {[%clk 0:02:05.4]} 16. Nd2 {[%clk 0:02:06.8]} 16...
Bxg2 {[%clk 0:02:04.7]} 17. Kxg2 {[%clk 0:02:07.7]} 17... Qd5+ {[%clk
0:01:58.8]} 18. Kg1 {[%clk 0:02:05.5]} 18... Ng5 {[%clk 0:01:56.3]} 19. h4
{[%clk 0:01:58.6]} 19... Ne6 {[%clk 0:01:45.1]} 20. Nf3 {[%clk 0:01:58.6]} 20...
Qf5 {[%clk 0:01:40.3]} 21. d4 {[%clk 0:01:26.9]} 21... Rfd8 {[%clk 0:01:33.1]}
22. Qc2 {[%clk 0:01:25.9]} 22... Qh3 {[%clk 0:01:30.2]} 23. dxc5 {[%clk
0:01:23.4]} 23... Bxc5 {[%clk 0:01:28.6]} 24. e3 {[%clk 0:00:30.4]} 24... Bxe3
{[%clk 0:01:27]} 25. Qe4 {[%clk 0:00:18.7]} 25... Qxg3+ {[%clk 0:01:26.8]} 26.
Kh1 {[%clk 0:00:19.1]} 26... Qh3+ {[%clk 0:01:11.2]} 27. Nh2 {[%clk 0:00:19.2]}
27... Bxc1 {[%clk 0:00:42]} 28. Bxc1 {[%clk 0:00:20.1]} 28... Rd4 {[%clk
0:00:40]} 29. Qb7 {[%clk 0:00:20]} 29... Rcd8 {[%clk 0:00:30.8]} 30. Qg2 {[%clk
0:00:11]} 30... Qxh4 {[%clk 0:00:22.4]} 31. Be3 {[%clk 0:00:10.3]} 31... Nf4
{[%clk 0:00:21.5]} 32. Qf3 {[%clk 0:00:05.2]} 32... Rb4 {[%clk 0:00:08]} 33. Rg1
{[%clk 0:00:05]} 33... Qh5 {[%clk 0:00:05.4]} 34. Qg3 {[%clk 0:00:04.1]} 34...
Ng6 {[%clk 0:00:04.9]} 35. Qc7 {[%clk 0:00:03.8]} 35... Rf8 {[%clk 0:00:05.4]}
36. Rg5 {[%clk 0:00:03.7]} 36... Qh6 {[%clk 0:00:05]} 37. Rg4 {[%clk 0:00:02.8]}
37... Qh3 {[%clk 0:00:04.8]} 38. Rxb4 {[%clk 0:00:02.6]} 38... Nh4 {[%clk
0:00:03.1]} 39. Qg3 {[%clk 0:00:03.2]} 39... Qe6 {[%clk 0:00:02.2]} 40. Qxh4
{[%clk 0:00:02.8]} 40... Qd5+ {[%clk 0:00:02.8]} 41. Re4 {[%clk 0:00:02.8]}
41... Qd1+ {[%clk 0:00:03.7]} 42. Kg2 {[%clk 0:00:02.9]} 42... Qd5 {[%clk
0:00:03.8]} 43. Kh3 {[%clk 0:00:02.2]} 43... f5 {[%clk 0:00:04.3]} 44. Rf4
{[%clk 0:00:03.1]} 44... Qe6 {[%clk 0:00:04.5]} 45. Qg3 {[%clk 0:00:03.5]} 45...
h6 {[%clk 0:00:04.3]} 46. Kg2 {[%clk 0:00:03.9]} 46... g5 {[%clk 0:00:04.7]} 47.
Rc4 {[%clk 0:00:04.4]} 47... Qd5+ {[%clk 0:00:05.1]} 48. Qf3 {[%clk 0:00:04]}
48... Qd7 {[%clk 0:00:05.7]} 49. Qc6 {[%clk 0:00:03.7]} 49... Qf7 {[%clk
0:00:05.2]} 50. Qc7 {[%clk 0:00:03.3]} 50... Qh5 {[%clk 0:00:05.2]} 51. Rc6
{[%clk 0:00:02.5]} 51... f4 {[%clk 0:00:04.9]} 52. Qe5 {[%clk 0:00:02.6]} 52...
f3+ {[%clk 0:00:03.6]} 53. Kg1 {[%clk 0:00:03.1]} 53... Qh3 {[%clk 0:00:02.8]}
54. Qg7+ {[%clk 0:00:02.7]} 54... Kxg7 {[%clk 0:00:02.7]} 55. Rc7+ {[%clk
0:00:03]} 55... Kg6 {[%clk 0:00:03.1]} 56. Rc6+ {[%clk 0:00:03.5]} 56... Kh5
{[%clk 0:00:03.6]} 57. Nxf3 {[%clk 0:00:02.7]} 57... Rxf3 {[%clk 0:00:04.5]} 0-1

[Event "Late-Titled-Tuesday-Blitz-August-29-2023"]
[Site "Chess.com"]
[Date "2023.08.29"]
[Round "1"]
[White "Ncatt"]
[Black "GM_shahin"]
[Result "1/2-1/2"]
[WhiteElo "2424"]
[BlackElo "2706"]
[TimeControl "180+1"]
[EndTime "14:08:25 PDT"]
[Termination "Game drawn - insufficient material"]

1. e4 {[%clk 0:02:58.2]} 1... c6 {[%clk 0:03:00.5]} 2. d4 {[%clk 0:02:58]} 2...
d5 {[%clk 0:03:01.4]} 3. exd5 {[%clk 0:02:58.9]} 3... cxd5 {[%clk 0:03:01.5]} 4.
Bd3 {[%clk 0:02:59.8]} 4... Nc6 {[%clk 0:03:02.1]} 5. c3 {[%clk 0:02:59.8]} 5...
g6 {[%clk 0:03:02.7]} 6. Nf3 {[%clk 0:02:56.7]} 6... Bf5 {[%clk 0:03:03]} 7. Be2
{[%clk 0:02:56.4]} 7... Nf6 {[%clk 0:03:02.2]} 8. O-O {[%clk 0:02:56.1]} 8... e6
{[%clk 0:03:02.9]} 9. Bf4 {[%clk 0:02:54.4]} 9... Bd6 {[%clk 0:03:03]} 10. Bxd6
{[%clk 0:02:53.9]} 10... Qxd6 {[%clk 0:03:03.9]} 11. Nbd2 {[%clk 0:02:54.8]}
11... h5 {[%clk 0:03:03.1]} 12. Re1 {[%clk 0:02:53.4]} 12... O-O-O {[%clk
0:03:00.9]} 13. b4 {[%clk 0:02:49.4]} 13... Kb8 {[%clk 0:03:01.4]} 14. Nb3
{[%clk 0:02:46]} 14... Ne4 {[%clk 0:03:00.8]} 15. Rc1 {[%clk 0:02:38.9]} 15...
g5 {[%clk 0:03:00.9]} 16. b5 {[%clk 0:02:37.5]} 16... g4 {[%clk 0:03:00.1]} 17.
bxc6 {[%clk 0:02:31.2]} 17... gxf3 {[%clk 0:03:00.3]} 18. Bxf3 {[%clk
0:02:28.9]} 18... Qxc6 {[%clk 0:03:00.8]} 19. c4 {[%clk 0:02:24.8]} 19... Ng5
{[%clk 0:02:59.7]} 20. cxd5 {[%clk 0:02:15.3]} 20... Nxf3+ {[%clk 0:02:58.2]}
21. Qxf3 {[%clk 0:02:16.2]} 21... Qxd5 {[%clk 0:02:58.8]} 22. Qf4+ {[%clk
0:02:09.8]} 22... Qd6 {[%clk 0:02:56.7]} 23. Qxd6+ {[%clk 0:01:46]} 23... Rxd6
{[%clk 0:02:57.6]} 24. f3 {[%clk 0:01:41.4]} 24... b6 {[%clk 0:02:48.3]} 25. Rc3
{[%clk 0:01:37.6]} 25... a5 {[%clk 0:02:47.5]} 26. Rd1 {[%clk 0:01:17.4]} 26...
Rc8 {[%clk 0:02:46.8]} 27. Rxc8+ {[%clk 0:01:15.7]} 27... Kxc8 {[%clk
0:02:47.7]} 28. Kf2 {[%clk 0:01:10.4]} 28... Kb7 {[%clk 0:02:40.9]} 29. Ke3
{[%clk 0:01:10]} 29... a4 {[%clk 0:02:39.5]} 30. Nd2 {[%clk 0:01:08.4]} 30...
Rc6 {[%clk 0:02:39.8]} 31. h3 {[%clk 0:01:04]} 31... Rc2 {[%clk 0:02:36.3]} 32.
g4 {[%clk 0:01:03.6]} 32... Bg6 {[%clk 0:02:35]} 33. Ra1 {[%clk 0:00:45.9]}
33... b5 {[%clk 0:02:27.9]} 34. a3 {[%clk 0:00:44.3]} 34... Kc6 {[%clk
0:02:22.3]} 35. Ne4 {[%clk 0:00:40]} 35... hxg4 {[%clk 0:02:12.2]} 36. hxg4
{[%clk 0:00:38.3]} 36... Kd5 {[%clk 0:02:08.9]} 37. Rb1 {[%clk 0:00:35.5]} 37...
Kc6 {[%clk 0:02:01.9]} 38. Kd3 {[%clk 0:00:33.1]} 38... Ra2 {[%clk 0:01:57.6]}
39. Rc1+ {[%clk 0:00:33.2]} 39... Kb6 {[%clk 0:01:58.1]} 40. Rc3 {[%clk
0:00:33.1]} 40... Ra1 {[%clk 0:01:46.7]} 41. Ke3 {[%clk 0:00:31]} 41... Rb1
{[%clk 0:01:39.3]} 42. Nd2 {[%clk 0:00:26.6]} 42... Rb2 {[%clk 0:01:34.7]} 43.
f4 {[%clk 0:00:25]} 43... Rc2 {[%clk 0:01:27.2]} 44. Rxc2 {[%clk 0:00:21.7]}
44... Bxc2 {[%clk 0:01:28.1]} 45. d5 {[%clk 0:00:15.3]} 45... exd5 {[%clk
0:01:27.7]} 46. Kd4 {[%clk 0:00:15.6]} 46... b4 {[%clk 0:01:23.5]} 47. axb4
{[%clk 0:00:14.8]} 47... a3 {[%clk 0:01:24.4]} 48. Kc3 {[%clk 0:00:15.1]} 48...
a2 {[%clk 0:01:25.1]} 49. Kb2 {[%clk 0:00:15.2]} 49... Kb5 {[%clk 0:01:23.4]}
50. Kxa2 {[%clk 0:00:13.8]} 50... Kxb4 {[%clk 0:01:21.5]} 51. Kb2 {[%clk
0:00:13.4]} 51... Bd1 {[%clk 0:01:22.1]} 52. g5 {[%clk 0:00:12.3]} 52... d4
{[%clk 0:01:18.6]} 53. f5 {[%clk 0:00:12.1]} 53... Bh5 {[%clk 0:01:15.3]} 54.
Kc2 {[%clk 0:00:10.3]} 54... Bg4 {[%clk 0:01:13.8]} 55. f6 {[%clk 0:00:08.8]}
55... Bf5+ {[%clk 0:01:13.4]} 56. Kd1 {[%clk 0:00:08.7]} 56... Kc3 {[%clk
0:01:13.2]} 57. Ke1 {[%clk 0:00:07.3]} 57... Kd3 {[%clk 0:01:10.5]} 58. Nf3
{[%clk 0:00:07]} 58... Ke4 {[%clk 0:01:10.3]} 59. Nh4 {[%clk 0:00:06.2]} 59...
Be6 {[%clk 0:00:17.2]} 60. g6 {[%clk 0:00:06.4]} 60... fxg6 {[%clk 0:00:17.5]}
61. Nxg6 {[%clk 0:00:07.3]} 61... d3 {[%clk 0:00:17.5]} 62. Kd2 {[%clk
0:00:07.4]} 62... Kf5 {[%clk 0:00:14.3]} 63. Kxd3 {[%clk 0:00:08.3]} 63... Kxg6
{[%clk 0:00:14.3]} 64. Kd4 {[%clk 0:00:09.2]} 64... Kxf6 {[%clk 0:00:14.8]}
1/2-1/2

[Event "Late-Titled-Tuesday-Blitz-August-29-2023"]
[Site "Chess.com"]
[Date "2023.08.29"]
[Round "1"]
[White "korason34"]
[Black "ExchangeAB"]
[Result "1-0"]
[WhiteElo "2743"]
[BlackElo "2423"]
[TimeControl "180+1"]
[EndTime "14:08:26 PDT"]
[Termination "korason34 won by resignation"]

1. Nf3 {[%clk 0:03:00.9]} 1... d5 {[%clk 0:02:59.8]} 2. b3 {[%clk 0:03:00.7]}
2... c6 {[%clk 0:03:00.4]} 3. Bb2 {[%clk 0:03:01.1]} 3... Nf6 {[%clk 0:03:01.1]}
4. g3 {[%clk 0:03:01.7]} 4... Bf5 {[%clk 0:03:01.6]} 5. Bg2 {[%clk 0:03:02.3]}
5... e6 {[%clk 0:03:02.2]} 6. O-O {[%clk 0:03:02.9]} 6... h6 {[%clk 0:03:02.7]}
7. d3 {[%clk 0:03:03.1]} 7... Nbd7 {[%clk 0:03:03]} 8. Nbd2 {[%clk 0:03:03.8]}
8... Bh7 {[%clk 0:03:03.1]} 9. Re1 {[%clk 0:03:03.2]} 9... Be7 {[%clk
0:03:03.2]} 10. e4 {[%clk 0:03:03.3]} 10... O-O {[%clk 0:03:03.3]} 11. Qe2
{[%clk 0:02:58]} 11... a5 {[%clk 0:03:02.8]} 12. a3 {[%clk 0:02:57.9]} 12... b5
{[%clk 0:03:01.6]} 13. Ne5 {[%clk 0:02:45.9]} 13... Nxe5 {[%clk 0:03:01.1]} 14.
Bxe5 {[%clk 0:02:46.8]} 14... Nd7 {[%clk 0:03:00.7]} 15. Bb2 {[%clk 0:02:46.9]}
15... Bf6 {[%clk 0:02:58.7]} 16. e5 {[%clk 0:02:45.8]} 16... Be7 {[%clk
0:02:58.5]} 17. h4 {[%clk 0:02:42.7]} 17... Nb6 {[%clk 0:02:54.7]} 18. Nf3
{[%clk 0:02:34.7]} 18... c5 {[%clk 0:02:52.7]} 19. Nh2 {[%clk 0:02:23.6]} 19...
Qc7 {[%clk 0:02:45.1]} 20. Bc1 {[%clk 0:02:17.1]} 20... Rfc8 {[%clk 0:02:43.9]}
21. Bf4 {[%clk 0:02:17.1]} 21... Bf8 {[%clk 0:02:43.1]} 22. Ng4 {[%clk
0:02:13.6]} 22... c4 {[%clk 0:02:42.4]} 23. bxc4 {[%clk 0:02:08.1]} 23... bxc4
{[%clk 0:02:41.5]} 24. d4 {[%clk 0:02:07.5]} 24... c3 {[%clk 0:02:38]} 25. Rab1
{[%clk 0:02:00.3]} 25... Nc4 {[%clk 0:02:37.1]} 26. a4 {[%clk 0:02:00.2]} 26...
Na3 {[%clk 0:02:35.1]} 27. Rbc1 {[%clk 0:01:56.8]} 27... Qc6 {[%clk 0:02:34.5]}
28. Ne3 {[%clk 0:01:29.4]} 28... Qxa4 {[%clk 0:02:32.4]} 29. Red1 {[%clk
0:01:29.8]} 29... Qb5 {[%clk 0:02:29.8]} 30. Qg4 {[%clk 0:01:29.1]} 30... Kh8
{[%clk 0:02:26.4]} 31. Bf1 {[%clk 0:01:25.5]} 31... Qd7 {[%clk 0:02:21.7]} 32.
Bd3 {[%clk 0:01:25.2]} 32... Bxd3 {[%clk 0:02:20.4]} 33. Rxd3 {[%clk 0:01:21.8]}
33... Nb5 {[%clk 0:02:20.1]} 34. Qf3 {[%clk 0:01:08.4]} 34... a4 {[%clk
0:02:19.9]} 35. Ng4 {[%clk 0:01:08.2]} 35... Qd8 {[%clk 0:02:07.8]} 36. Kg2
{[%clk 0:01:00.6]} 36... a3 {[%clk 0:02:07.7]} 37. Ra1 {[%clk 0:00:48]} 37... a2
{[%clk 0:02:07.7]} 38. Be3 {[%clk 0:00:34.5]} 38... Qe7 {[%clk 0:02:02.1]} 39.
Rdd1 {[%clk 0:00:32.7]} 39... Rc4 {[%clk 0:01:53.8]} 40. h5 {[%clk 0:00:20.7]}
40... Raa4 {[%clk 0:01:50.3]} 41. Qf4 {[%clk 0:00:20.2]} 41... Na3 {[%clk
0:01:37.2]} 42. Rdc1 {[%clk 0:00:18.9]} 42... Nb5 {[%clk 0:01:32.8]} 43. Rd1
{[%clk 0:00:18.8]} 43... Rcb4 {[%clk 0:01:32.5]} 44. Nh2 {[%clk 0:00:11.7]}
44... Rb2 {[%clk 0:01:24.8]} 45. Rdc1 {[%clk 0:00:11.5]} 45... Qg5 {[%clk
0:01:19.7]} 46. Qxf7 {[%clk 0:00:10.3]} 46... Qe7 {[%clk 0:01:17.9]} 47. Qf3
{[%clk 0:00:09.8]} 47... Nxd4 {[%clk 0:01:05.2]} 48. Bxd4 {[%clk 0:00:10]} 48...
Rxd4 {[%clk 0:01:06.1]} 49. Qxc3 {[%clk 0:00:10.3]} 49... Qb4 {[%clk 0:01:06.1]}
50. Qf3 {[%clk 0:00:09.1]} 50... Kg8 {[%clk 0:01:04.3]} 51. c3 {[%clk
0:00:09.4]} 51... Qc4 {[%clk 0:00:38.6]} 52. cxd4 {[%clk 0:00:09.5]} 52... Qxd4
{[%clk 0:00:37.3]} 53. Rc8 {[%clk 0:00:07.7]} 53... Qb4 {[%clk 0:00:30]} 54. Nf1
{[%clk 0:00:07.2]} 54... d4 {[%clk 0:00:24.5]} 55. Qf4 {[%clk 0:00:05]} 55... d3
{[%clk 0:00:13.5]} 56. Kg1 {[%clk 0:00:04.7]} 56... Qa3 {[%clk 0:00:09]} 57. Qd4
{[%clk 0:00:03.5]} 57... Rb1 {[%clk 0:00:08.5]} 58. Rd8 {[%clk 0:00:01.4]} 58...
Rxa1 {[%clk 0:00:07.8]} 59. Qxa1 {[%clk 0:00:02.3]} 59... d2 {[%clk 0:00:08]}
60. Rxd2 {[%clk 0:00:02.4]} 60... Bb4 {[%clk 0:00:05.3]} 61. Qxa2 {[%clk
0:00:03.1]} 61... Qxa2 {[%clk 0:00:04.6]} 62. Rxa2 {[%clk 0:00:02.8]} 62... Bc3
{[%clk 0:00:05.5]} 63. Re2 {[%clk 0:00:03.5]} 63... Kh7 {[%clk 0:00:06.4]} 64.
Kg2 {[%clk 0:00:04.3]} 64... g6 {[%clk 0:00:06.8]} 65. Kf3 {[%clk 0:00:05.2]}
65... gxh5 {[%clk 0:00:06.5]} 66. Ke4 {[%clk 0:00:06.1]} 66... Kg6 {[%clk
0:00:07.4]} 67. Re3 {[%clk 0:00:06.8]} 1-0